[Event "Titled Tuesday Blitz March 07 Early 2023"]
[White "Chylewski, Patryk"]
[Black "Demchenko, Anton"]
[WhiteFideId "1186191"]
[BlackFideId "4160258"]
[WhiteElo "2163"]
[BlackElo "2545"]
[Result "0-1"]
[Round "02"]
[TimeControl "180+2"]
[Date "2023.03.07"]
[WhiteClock "0:00:01"]
[BlackClock "0:00:11"]

1. e4 {[%clk 0:03:00]}  c5 {[%clk 0:02:49]} 2. Nf3 {[%clk 0:03:00]}  d6 {[%clk 0:02:49]} 3. c3 {[%clk 0:03:00]}  Nf6 {[%clk 0:02:48]} 4. h3 {[%clk 0:03:01]}  Nc6 {[%clk 0:02:44]} 5. Bd3 {[%clk 0:03:00]}  e5 {[%clk 0:02:44]} 6. Bc2 {[%clk 0:02:58]}  d5 {[%clk 0:02:43]} 7. d3 {[%clk 0:02:54]}  Bd6 {[%clk 0:02:39]} 8. O-O {[%clk 0:02:54]}  O-O {[%clk 0:02:37]} 9. Re1 {[%clk 0:02:53]}  h6 {[%clk 0:02:35]} 10. Nbd2 {[%clk 0:02:51]}  Re8 {[%clk 0:02:32]} 11. a3 {[%clk 0:02:47]}  a5 {[%clk 0:02:30]} 12. a4 {[%clk 0:02:44]}  d4 {[%clk 0:02:26]} 13. Nc4 {[%clk 0:02:42]}  Bc7 {[%clk 0:02:26]} 14. Nh4 {[%clk 0:02:30]}  Be6 {[%clk 0:02:06]} 15. Bb3 {[%clk 0:02:20]}  Qd7 {[%clk 0:01:56]} 16. Qf3 {[%clk 0:02:13]}  Nh7 {[%clk 0:01:53]} 17. Qg3 {[%clk 0:01:43]}  Kh8 {[%clk 0:01:53]} 18. f4 {[%clk 0:01:12]}  exf4 {[%clk 0:01:46]} 19. Bxf4 {[%clk 0:01:13]}  Bxf4 {[%clk 0:01:33]} 20. Qxf4 {[%clk 0:01:14]}  g5 {[%clk 0:01:26]} 21. Qf3 {[%clk 0:01:11]}  Bxc4 {[%clk 0:01:11]} 22. Bxc4 {[%clk 0:01:11]}  gxh4 {[%clk 0:01:07]} 23. Qxf7 {[%clk 0:01:11]}  Qxf7 {[%clk 0:01:03]} 24. Bxf7 {[%clk 0:01:12]}  Rf8 {[%clk 0:01:04]} 25. Bd5 {[%clk 0:01:12]}  Nf6 {[%clk 0:00:53]} 26. Bxc6 {[%clk 0:01:11]}  bxc6 {[%clk 0:00:54]} 27. cxd4 {[%clk 0:01:11]}  cxd4 {[%clk 0:00:54]} 28. Rac1 {[%clk 0:01:12]}  Rfc8 {[%clk 0:00:45]} 29. Rc5 {[%clk 0:01:08]}  Rab8 {[%clk 0:00:44]} 30. Re2 {[%clk 0:01:08]}  Rb3 {[%clk 0:00:41]} 31. Rd2 {[%clk 0:01:06]}  Nd7 {[%clk 0:00:40]} 32. Rxa5 {[%clk 0:01:05]}  c5 {[%clk 0:00:41]} 33. Kf2 {[%clk 0:00:56]}  Ne5 {[%clk 0:00:36]} 34. Ke2 {[%clk 0:00:56]}  Rg8 {[%clk 0:00:37]} 35. Rxc5 {[%clk 0:00:50]}  Rxg2+ {[%clk 0:00:36]} 36. Kd1 {[%clk 0:00:50]}  Rxd2+ {[%clk 0:00:30]} 37. Kxd2 {[%clk 0:00:51]}  Rxb2+ {[%clk 0:00:26]} 38. Kd1 {[%clk 0:00:48]}  Nxd3 {[%clk 0:00:25]} 39. Rd5 {[%clk 0:00:44]}  Rb4 {[%clk 0:00:19]} 40. a5 {[%clk 0:00:38]}  Ra4 {[%clk 0:00:19]} 41. Rh5 {[%clk 0:00:28]}  Kg7 {[%clk 0:00:18]} 42. Rxh4 {[%clk 0:00:27]}  Ne5 {[%clk 0:00:18]} 43. Rh5 {[%clk 0:00:25]}  Rxa5 {[%clk 0:00:18]} 44. Rf5 {[%clk 0:00:20]}  d3 {[%clk 0:00:18]} 45. Kd2 {[%clk 0:00:17]}  Ra2+ {[%clk 0:00:12]} 46. Kc3 {[%clk 0:00:13]}  Rc2+ {[%clk 0:00:12]} 47. Kb3 {[%clk 0:00:13]}  Ng6 {[%clk 0:00:10]} 48. Rd5 {[%clk 0:00:12]}  Re2 {[%clk 0:00:08]} 49. Rxd3 {[%clk 0:00:11]}  Rxe4 {[%clk 0:00:09]} 50. Kc2 {[%clk 0:00:10]}  Ne5 {[%clk 0:00:08]} 51. Rg3+ {[%clk 0:00:09]}  Kf6 {[%clk 0:00:09]} 52. Kd2 {[%clk 0:00:09]}  Kf5 {[%clk 0:00:09]} 53. Ra3 {[%clk 0:00:08]}  Rb4 {[%clk 0:00:09]} 54. Ke2 {[%clk 0:00:07]}  Rb2+ {[%clk 0:00:08]} 55. Kf1 {[%clk 0:00:07]}  Rc2 {[%clk 0:00:08]} 56. Kg1 {[%clk 0:00:07]}  h5 {[%clk 0:00:08]} 57. Kf1 {[%clk 0:00:07]}  h4 {[%clk 0:00:08]} 58. Kg1 {[%clk 0:00:07]}  Ng6 {[%clk 0:00:07]} 59. Rf3+ {[%clk 0:00:05]}  Kg5 {[%clk 0:00:08]} 60. Ra3 {[%clk 0:00:05]}  Re2 {[%clk 0:00:08]} 61. Rb3 {[%clk 0:00:04]}  Kf5 {[%clk 0:00:08]} 62. Ra3 {[%clk 0:00:03]}  Nf4 {[%clk 0:00:08]} 63. Rb3 {[%clk 0:00:03]}  Rd2 {[%clk 0:00:09]} 64. Ra3 {[%clk 0:00:01]}  Rd3 {[%clk 0:00:09]} 65. Ra5+ {[%clk 0:00:01]}  Ke4 {[%clk 0:00:09]} 66. Ra4+ {[%clk 0:00:02]}  Kf3 {[%clk 0:00:09]} 67. Kh2 {[%clk 0:00:02]}  Rd2+ {[%clk 0:00:09]} 68. Kh1 {[%clk 0:00:03]}  Kg3 {[%clk 0:00:08]} 69. Ra3+ {[%clk 0:00:03]}  Rd3 {[%clk 0:00:09]} 70. Ra1 {[%clk 0:00:02]}  Re3 {[%clk 0:00:09]} 71. Rf1 {[%clk 0:00:02]}  Ne2 {[%clk 0:00:08]} 72. Rd1 {[%clk 0:00:01]}  Kf3 {[%clk 0:00:08]} 73. Rf1+ {[%clk 0:00:01]}  Ke4 {[%clk 0:00:08]} 74. Rd1 {[%clk 0:00:01]}  Rxh3+ {[%clk 0:00:08]} 75. Kg2 {[%clk 0:00:01]}  Rg3+ {[%clk 0:00:08]} 76. Kf2 {[%clk 0:00:02]}  Nf4 {[%clk 0:00:09]} 77. Rf1 {[%clk 0:00:01]}  Kf5 {[%clk 0:00:09]} 78. Rh1 {[%clk 0:00:01]}  Kg4 {[%clk 0:00:10]} 79. Rh2 {[%clk 0:00:02]}  h3 {[%clk 0:00:10]} 80. Rh1 {[%clk 0:00:02]}  Rg2+ {[%clk 0:00:10]} 81. Kf1 {[%clk 0:00:02]}  Kg3 {[%clk 0:00:11]} 82. Rxh3+ {[%clk 0:00:01]}  Nxh3 {[%clk 0:00:11]} 0-1


[Site "https://www.chess.com"]

[Event "Titled Tuesday Blitz March 07 Early 2023"]
[White "Keymer, Vincent"]
[Black "Czopor, Maciej"]
[WhiteFideId "12940690"]
[BlackFideId "21805431"]
[WhiteElo "2651"]
[BlackElo "2324"]
[Result "1-0"]
[Round "02"]
[TimeControl "180+2"]
[Date "2023.03.07"]
[WhiteClock "0:00:29"]
[BlackClock "0:00:01"]

1. a3 {[%clk 0:03:00]}  Nf6 {[%clk 0:02:58]} 2. Nf3 {[%clk 0:03:00]}  g6 {[%clk 0:02:58]} 3. b4 {[%clk 0:03:00]}  Bg7 {[%clk 0:02:58]} 4. Bb2 {[%clk 0:03:00]}  O-O {[%clk 0:02:59]} 5. e3 {[%clk 0:02:58]}  b6 {[%clk 0:02:58]} 6. c4 {[%clk 0:02:54]}  Bb7 {[%clk 0:02:57]} 7. Be2 {[%clk 0:02:54]}  d6 {[%clk 0:02:53]} 8. O-O {[%clk 0:02:53]}  Nbd7 {[%clk 0:02:52]} 9. d3 {[%clk 0:02:52]}  e5 {[%clk 0:02:52]} 10. Nc3 {[%clk 0:02:51]}  Re8 {[%clk 0:02:45]} 11. Nd2 {[%clk 0:02:38]}  h5 {[%clk 0:02:35]} 12. h3 {[%clk 0:02:36]}  Nf8 {[%clk 0:02:25]} 13. Rc1 {[%clk 0:02:35]}  Ne6 {[%clk 0:02:19]} 14. Bf3 {[%clk 0:02:32]}  Bxf3 {[%clk 0:02:18]} 15. Qxf3 {[%clk 0:02:33]}  Qd7 {[%clk 0:02:13]} 16. Nd5 {[%clk 0:02:25]}  Nh7 {[%clk 0:02:04]} 17. Qe2 {[%clk 0:02:01]}  c6 {[%clk 0:01:22]} 18. Nc3 {[%clk 0:01:58]}  d5 {[%clk 0:01:22]} 19. b5 {[%clk 0:01:48]}  d4 {[%clk 0:01:12]} 20. bxc6 {[%clk 0:01:46]}  Qxc6 {[%clk 0:01:12]} 21. Nd5 {[%clk 0:01:46]}  Nc5 {[%clk 0:01:08]} 22. e4 {[%clk 0:01:41]}  Bh6 {[%clk 0:01:03]} 23. f4 {[%clk 0:01:39]}  Na4 {[%clk 0:00:56]} 24. Ba1 {[%clk 0:01:37]}  Nc3 {[%clk 0:00:56]} 25. Qf2 {[%clk 0:01:27]}  exf4 {[%clk 0:00:50]} 26. Nb3 {[%clk 0:01:03]}  Nxd5 {[%clk 0:00:21]} 27. cxd5 {[%clk 0:01:01]}  Qa4 {[%clk 0:00:18]} 28. Nxd4 {[%clk 0:00:59]}  Qxa3 {[%clk 0:00:13]} 29. Rc3 {[%clk 0:00:39]}  Qb4 {[%clk 0:00:08]} 30. Nc6 {[%clk 0:00:38]}  Qa4 {[%clk 0:00:06]} 31. Rc4 {[%clk 0:00:35]}  Qb3 {[%clk 0:00:02]} 32. Qd4 {[%clk 0:00:34]}  f6 {[%clk 0:00:01]} 33. d6 {[%clk 0:00:35]}  Nf8 {[%clk 0:00:01]} 34. Qxf6 {[%clk 0:00:29]} 1-0


[Site "https://www.chess.com"]

[Event "Titled Tuesday Blitz March 07 Early 2023"]
[White "Yelisieiev, Yevhenii"]
[Black "Steinberg, Nitzan"]
[WhiteFideId "14139642"]
[BlackFideId "2801795"]
[WhiteElo "2447"]
[BlackElo "2486"]
[Result "0-1"]
[Round "02"]
[TimeControl "180+2"]
[Date "2023.03.07"]
[WhiteClock "0:00:10"]
[BlackClock "0:01:56"]

1. d4 {[%clk 0:03:00]}  Nf6 {[%clk 0:02:59]} 2. Nf3 {[%clk 0:03:01]}  g6 {[%clk 0:03:00]} 3. g3 {[%clk 0:03:01]}  Bg7 {[%clk 0:03:00]} 4. Bg2 {[%clk 0:03:02]}  O-O {[%clk 0:03:01]} 5. O-O {[%clk 0:03:02]}  c6 {[%clk 0:02:59]} 6. Nbd2 {[%clk 0:03:02]}  d5 {[%clk 0:02:59]} 7. a4 {[%clk 0:03:00]}  a5 {[%clk 0:03:00]} 8. c3 {[%clk 0:03:00]}  Bf5 {[%clk 0:02:59]} 9. Qb3 {[%clk 0:02:59]}  Qc8 {[%clk 0:02:58]} 10. Nh4 {[%clk 0:02:55]}  Be6 {[%clk 0:02:58]} 11. Qa3 {[%clk 0:02:48]}  Re8 {[%clk 0:02:56]} 12. e4 {[%clk 0:02:36]}  dxe4 {[%clk 0:02:52]} 13. Nxe4 {[%clk 0:02:35]}  Bh3 {[%clk 0:02:46]} 14. Re1 {[%clk 0:02:30]}  Bxg2 {[%clk 0:02:43]} 15. Nxg2 {[%clk 0:02:24]}  Nbd7 {[%clk 0:02:43]} 16. Bg5 {[%clk 0:02:11]}  Nxe4 {[%clk 0:02:42]} 17. Rxe4 {[%clk 0:02:10]}  e5 {[%clk 0:02:42]} 18. Rae1 {[%clk 0:01:54]}  Qc7 {[%clk 0:02:34]} 19. dxe5 {[%clk 0:01:46]}  Nxe5 {[%clk 0:02:27]} 20. Kh1 {[%clk 0:01:07]}  Qd7 {[%clk 0:02:23]} 21. Qb3 {[%clk 0:00:33]}  Nf3 {[%clk 0:02:00]} 22. Rxe8+ {[%clk 0:00:30]}  Rxe8 {[%clk 0:02:00]} 23. Rxe8+ {[%clk 0:00:30]}  Qxe8 {[%clk 0:02:00]} 24. Be3 {[%clk 0:00:29]}  Qe4 {[%clk 0:01:58]} 25. Qd1 {[%clk 0:00:20]}  Bf6 {[%clk 0:01:58]} 26. h3 {[%clk 0:00:16]}  h5 {[%clk 0:01:58]} 27. Qe2 {[%clk 0:00:09]}  Qb1+ {[%clk 0:01:55]} 28. Ne1 {[%clk 0:00:03]}  Qxe1+ {[%clk 0:01:55]} 29. Qxe1 {[%clk 0:00:03]}  Nxe1 {[%clk 0:01:56]} 30. b4 {[%clk 0:00:03]}  Bxc3 {[%clk 0:01:55]} 31. bxa5 {[%clk 0:00:03]}  Bxa5 {[%clk 0:01:56]} 32. Kh2 {[%clk 0:00:03]}  Nc2 {[%clk 0:01:55]} 33. g4 {[%clk 0:00:04]}  Nxe3 {[%clk 0:01:55]} 34. fxe3 {[%clk 0:00:05]}  hxg4 {[%clk 0:01:55]} 35. hxg4 {[%clk 0:00:05]}  Kf8 {[%clk 0:01:55]} 36. Kg3 {[%clk 0:00:06]}  Ke7 {[%clk 0:01:56]} 37. Kf4 {[%clk 0:00:07]}  Ke6 {[%clk 0:01:56]} 38. Ke4 {[%clk 0:00:08]}  Bb6 {[%clk 0:01:56]} 39. Kd3 {[%clk 0:00:08]}  Ke5 {[%clk 0:01:57]} 40. Kc4 {[%clk 0:00:09]}  Bxe3 {[%clk 0:01:56]} 41. a5 {[%clk 0:00:10]}  Kf4 {[%clk 0:01:56]} 0-1


[Site "https://www.chess.com"]

[Event "Titled Tuesday Blitz March 07 Early 2023"]
[White "Odegov, Artem"]
[Black "Gholami Orimi, Mahdi"]
[WhiteFideId "34183644"]
[BlackFideId "12558486"]
[WhiteElo "2300"]
[BlackElo "2363"]
[Result "1-0"]
[Round "02"]
[TimeControl "180+2"]
[Date "2023.03.07"]
[WhiteClock "0:00:12"]
[BlackClock "0:00:10"]

1. d4 {[%clk 0:02:54]}  Nf6 {[%clk 0:02:58]} 2. c4 {[%clk 0:02:53]}  e6 {[%clk 0:02:58]} 3. Nf3 {[%clk 0:02:53]}  d5 {[%clk 0:02:58]} 4. Nc3 {[%clk 0:02:53]}  dxc4 {[%clk 0:02:57]} 5. e4 {[%clk 0:02:52]}  b5 {[%clk 0:02:57]} 6. e5 {[%clk 0:02:52]}  Nd5 {[%clk 0:02:54]} 7. Nxb5 {[%clk 0:02:52]}  Nb6 {[%clk 0:02:54]} 8. Be3 {[%clk 0:02:51]}  Nc6 {[%clk 0:02:54]} 9. Be2 {[%clk 0:02:50]}  Rb8 {[%clk 0:02:53]} 10. O-O {[%clk 0:02:46]}  Be7 {[%clk 0:02:52]} 11. Rc1 {[%clk 0:02:46]}  Ba6 {[%clk 0:02:46]} 12. Nc3 {[%clk 0:02:45]}  Nb4 {[%clk 0:02:42]} 13. a3 {[%clk 0:02:43]}  Nd3 {[%clk 0:02:42]} 14. Rc2 {[%clk 0:02:31]}  O-O {[%clk 0:02:32]} 15. Nd2 {[%clk 0:02:25]}  c5 {[%clk 0:02:22]} 16. dxc5 {[%clk 0:02:19]}  Nxc5 {[%clk 0:02:23]} 17. Nce4 {[%clk 0:02:13]}  Qd5 {[%clk 0:01:57]} 18. Nxc5 {[%clk 0:01:28]}  Bxc5 {[%clk 0:01:58]} 19. Nxc4 {[%clk 0:01:11]}  Bxe3 {[%clk 0:01:23]} 20. Nxe3 {[%clk 0:01:05]}  Bxe2 {[%clk 0:01:03]} 21. Nxd5 {[%clk 0:00:56]}  Bxd1 {[%clk 0:01:02]} 22. Ne7+ {[%clk 0:00:56]}  Kh8 {[%clk 0:01:02]} 23. Rxd1 {[%clk 0:00:57]}  Rb7 {[%clk 0:00:56]} 24. Nc6 {[%clk 0:00:52]}  Nd5 {[%clk 0:00:52]} 25. b4 {[%clk 0:00:47]}  g5 {[%clk 0:00:39]} 26. g3 {[%clk 0:00:45]}  Rc8 {[%clk 0:00:34]} 27. Rdc1 {[%clk 0:00:44]}  Kg7 {[%clk 0:00:32]} 28. Kf1 {[%clk 0:00:33]}  g4 {[%clk 0:00:24]} 29. Ke2 {[%clk 0:00:33]}  h5 {[%clk 0:00:24]} 30. f4 {[%clk 0:00:32]}  gxf3+ {[%clk 0:00:24]} 31. Kxf3 {[%clk 0:00:32]}  Rh8 {[%clk 0:00:19]} 32. Nd4 {[%clk 0:00:28]}  h4 {[%clk 0:00:18]} 33. g4 {[%clk 0:00:28]}  Kg6 {[%clk 0:00:18]} 34. Rd1 {[%clk 0:00:25]}  Ne7 {[%clk 0:00:12]} 35. Ne2 {[%clk 0:00:23]}  Kg5 {[%clk 0:00:11]} 36. Nf4 {[%clk 0:00:19]}  h3 {[%clk 0:00:12]} 37. Kg3 {[%clk 0:00:18]}  Ng6 {[%clk 0:00:11]} 38. Nxh3+ {[%clk 0:00:18]}  Kh6 {[%clk 0:00:12]} 39. Rc5 {[%clk 0:00:16]}  Kg7 {[%clk 0:00:11]} 40. Rf1 {[%clk 0:00:16]}  Rd8 {[%clk 0:00:10]} 41. Ng5 {[%clk 0:00:16]}  Rd3+ {[%clk 0:00:11]} 42. Rf3 {[%clk 0:00:17]}  Rxf3+ {[%clk 0:00:10]} 43. Nxf3 {[%clk 0:00:18]}  Rd7 {[%clk 0:00:11]} 44. a4 {[%clk 0:00:17]}  Rd3 {[%clk 0:00:11]} 45. a5 {[%clk 0:00:17]}  Rb3 {[%clk 0:00:11]} 46. b5 {[%clk 0:00:17]}  Ra3 {[%clk 0:00:10]} 47. a6 {[%clk 0:00:17]}  Rb3 {[%clk 0:00:10]} 48. h4 {[%clk 0:00:18]}  Ne7 {[%clk 0:00:10]} 49. Rc7 {[%clk 0:00:15]}  Nd5 {[%clk 0:00:09]} 50. Rxa7 {[%clk 0:00:16]}  Rxb5 {[%clk 0:00:10]} 51. Ng5 {[%clk 0:00:16]}  Rb3+ {[%clk 0:00:11]} 52. Kf2 {[%clk 0:00:16]}  Rb2+ {[%clk 0:00:11]} 53. Ke1 {[%clk 0:00:16]}  Nb4 {[%clk 0:00:10]} 54. Rxf7+ {[%clk 0:00:16]}  Kg6 {[%clk 0:00:11]} 55. Rf6+ {[%clk 0:00:16]}  Kg7 {[%clk 0:00:10]} 56. Nxe6+ {[%clk 0:00:16]}  Kh7 {[%clk 0:00:11]} 57. Ng5+ {[%clk 0:00:15]}  Kg8 {[%clk 0:00:12]} 58. Rf3 {[%clk 0:00:15]}  Ra2 {[%clk 0:00:11]} 59. e6 {[%clk 0:00:14]}  Nd5 {[%clk 0:00:11]} 60. h5 {[%clk 0:00:12]}  Rxa6 {[%clk 0:00:11]} 61. h6 {[%clk 0:00:13]}  Ra1+ {[%clk 0:00:11]} 62. Kd2 {[%clk 0:00:12]}  Ra2+ {[%clk 0:00:10]} 63. Kd3 {[%clk 0:00:13]}  Ra5 {[%clk 0:00:09]} 64. h7+ {[%clk 0:00:12]}  Kg7 {[%clk 0:00:09]} 65. Rf7+ {[%clk 0:00:12]}  Kg6 {[%clk 0:00:09]} 66. h8=Q {[%clk 0:00:12]}  Kxg5 {[%clk 0:00:10]} 1-0


[Site "https://www.chess.com"]

[Event "Titled Tuesday Blitz March 07 Early 2023"]
[White "Sjugirov, Sanan"]
[Black "Sielecki, Christof"]
[WhiteFideId "4189302"]
[BlackFideId "4620437"]
[WhiteElo "2569"]
[BlackElo "2443"]
[Result "1-0"]
[Round "02"]
[TimeControl "180+2"]
[Date "2023.03.07"]
[WhiteClock "0:00:06"]
[BlackClock "0:00:18"]

1. e4 {[%clk 0:03:00]}  c5 {[%clk 0:02:59]} 2. Nf3 {[%clk 0:03:00]}  a6 {[%clk 0:03:00]} 3. c3 {[%clk 0:02:51]}  d5 {[%clk 0:02:59]} 4. exd5 {[%clk 0:02:35]}  Qxd5 {[%clk 0:03:00]} 5. d4 {[%clk 0:02:35]}  e6 {[%clk 0:03:00]} 6. Be3 {[%clk 0:02:33]}  Nd7 {[%clk 0:03:00]} 7. c4 {[%clk 0:02:25]}  Qc6 {[%clk 0:03:00]} 8. Nc3 {[%clk 0:02:24]}  Ngf6 {[%clk 0:03:00]} 9. Be2 {[%clk 0:02:22]}  b6 {[%clk 0:03:00]} 10. Ne5 {[%clk 0:02:05]}  Qc7 {[%clk 0:02:51]} 11. Bf3 {[%clk 0:01:59]}  cxd4 {[%clk 0:02:51]} 12. Bxd4 {[%clk 0:01:53]}  Bb7 {[%clk 0:02:46]} 13. Nxd7 {[%clk 0:01:45]}  Nxd7 {[%clk 0:02:30]} 14. O-O {[%clk 0:01:43]}  Rd8 {[%clk 0:02:24]} 15. Bxb7 {[%clk 0:01:40]}  Qxb7 {[%clk 0:02:23]} 16. Qg4 {[%clk 0:01:40]}  h5 {[%clk 0:02:11]} 17. Qh3 {[%clk 0:01:32]}  Nf6 {[%clk 0:01:52]} 18. Bxf6 {[%clk 0:01:23]}  gxf6 {[%clk 0:01:53]} 19. Rad1 {[%clk 0:01:22]}  Rxd1 {[%clk 0:01:39]} 20. Rxd1 {[%clk 0:01:22]}  Rg8 {[%clk 0:01:38]} 21. f3 {[%clk 0:00:45]}  Qc6 {[%clk 0:01:20]} 22. Qxh5 {[%clk 0:00:26]}  Qxc4 {[%clk 0:01:14]} 23. Kh1 {[%clk 0:00:11]}  f5 {[%clk 0:01:10]} 24. Qh7 {[%clk 0:00:06]}  Rg6 {[%clk 0:01:00]} 25. Qh8 {[%clk 0:00:07]}  Ke7 {[%clk 0:00:48]} 26. Qe5 {[%clk 0:00:06]}  Qc8 {[%clk 0:00:18]} 27. Nd5+ {[%clk 0:00:06]} 1-0


[Site "https://www.chess.com"]

[Event "Titled Tuesday Blitz March 07 Early 2023"]
[White "Mitrabha, Guha"]
[Black "Ozates, Tuna"]
[WhiteFideId "5057000"]
[BlackFideId "6354521"]
[WhiteElo "2507"]
[BlackElo "2151"]
[Result "1-0"]
[Round "02"]
[TimeControl "180+2"]
[Date "2023.03.07"]
[WhiteClock "0:00:54"]
[BlackClock "0:00:01"]

1. d4 {[%clk 0:03:00]}  Nf6 {[%clk 0:02:58]} 2. Nf3 {[%clk 0:03:00]}  d5 {[%clk 0:02:58]} 3. Bf4 {[%clk 0:02:59]}  c5 {[%clk 0:02:57]} 4. e3 {[%clk 0:03:00]}  Nc6 {[%clk 0:02:57]} 5. Nbd2 {[%clk 0:03:00]}  cxd4 {[%clk 0:02:57]} 6. exd4 {[%clk 0:03:00]}  Bf5 {[%clk 0:02:56]} 7. Nb3 {[%clk 0:03:00]}  e6 {[%clk 0:02:56]} 8. a4 {[%clk 0:03:00]}  Bd6 {[%clk 0:02:56]} 9. Bxd6 {[%clk 0:02:59]}  Qxd6 {[%clk 0:02:57]} 10. Bd3 {[%clk 0:03:00]}  Bxd3 {[%clk 0:02:56]} 11. Qxd3 {[%clk 0:03:01]}  O-O {[%clk 0:02:57]} 12. O-O {[%clk 0:02:58]}  Rfc8 {[%clk 0:02:41]} 13. c3 {[%clk 0:02:56]}  Rab8 {[%clk 0:02:37]} 14. Qe2 {[%clk 0:02:52]}  Qc7 {[%clk 0:02:26]} 15. Nc5 {[%clk 0:02:44]}  Re8 {[%clk 0:02:19]} 16. Rfe1 {[%clk 0:02:42]}  Nd7 {[%clk 0:02:19]} 17. Nd3 {[%clk 0:02:40]}  a6 {[%clk 0:02:17]} 18. g3 {[%clk 0:02:28]}  b5 {[%clk 0:02:14]} 19. axb5 {[%clk 0:02:25]}  axb5 {[%clk 0:02:14]} 20. b4 {[%clk 0:02:25]}  Nf6 {[%clk 0:01:50]} 21. Nc5 {[%clk 0:02:17]}  Qd6 {[%clk 0:01:45]} 22. Ra6 {[%clk 0:02:12]}  Rec8 {[%clk 0:01:42]} 23. Rea1 {[%clk 0:02:10]}  h6 {[%clk 0:01:35]} 24. Ne5 {[%clk 0:02:03]}  Rc7 {[%clk 0:01:22]} 25. Ra8 {[%clk 0:01:48]}  Rxa8 {[%clk 0:01:15]} 26. Rxa8+ {[%clk 0:01:45]}  Kh7 {[%clk 0:01:16]} 27. Qxb5 {[%clk 0:01:42]}  Nxe5 {[%clk 0:01:11]} 28. dxe5 {[%clk 0:01:27]}  Qxe5 {[%clk 0:01:11]} 29. Qb8 {[%clk 0:01:25]}  Qe1+ {[%clk 0:00:35]} 30. Kg2 {[%clk 0:01:24]}  Rxc5 {[%clk 0:00:36]} 31. bxc5 {[%clk 0:01:20]}  Qe4+ {[%clk 0:00:36]} 32. Kf1 {[%clk 0:01:16]}  Qh1+ {[%clk 0:00:28]} 33. Ke2 {[%clk 0:01:09]}  Qe4+ {[%clk 0:00:28]} 34. Kd2 {[%clk 0:01:09]}  Qc4 {[%clk 0:00:28]} 35. Qb1+ {[%clk 0:01:08]}  Ne4+ {[%clk 0:00:27]} 36. Ke1 {[%clk 0:01:07]}  Qxc3+ {[%clk 0:00:23]} 37. Kf1 {[%clk 0:01:08]}  Qf3 {[%clk 0:00:22]} 38. Qc2 {[%clk 0:01:05]}  Qh1+ {[%clk 0:00:19]} 39. Ke2 {[%clk 0:01:05]}  Qxh2 {[%clk 0:00:19]} 40. Ke3 {[%clk 0:01:04]}  Qg1 {[%clk 0:00:16]} 41. c6 {[%clk 0:01:03]}  Qe1+ {[%clk 0:00:14]} 42. Kf3 {[%clk 0:01:03]}  f5 {[%clk 0:00:12]} 43. c7 {[%clk 0:00:59]}  Qh1+ {[%clk 0:00:03]} 44. Ke2 {[%clk 0:00:59]}  Qg2 {[%clk 0:00:02]} 45. Ke3 {[%clk 0:00:56]}  Qf1 {[%clk 0:00:01]} 46. c8=Q {[%clk 0:00:54]} 1-0


[Site "https://www.chess.com"]

[Event "Titled Tuesday Blitz March 07 Early 2023"]
[White "Rustemov, Alexander"]
[Black "Crevatin, Leo"]
[WhiteFideId "4119002"]
[BlackFideId "1726307"]
[WhiteElo "2891"]
[BlackElo "2190"]
[Result "1/2-1/2"]
[Round "02"]
[TimeControl "180+2"]
[Date "2023.03.07"]
[WhiteClock "0:00:14"]
[BlackClock "0:00:37"]

1. d4 {[%clk 0:03:00]}  Nf6 {[%clk 0:02:59]} 2. c4 {[%clk 0:03:01]}  e6 {[%clk 0:02:59]} 3. Nf3 {[%clk 0:03:01]}  d5 {[%clk 0:02:59]} 4. Bg5 {[%clk 0:03:00]}  h6 {[%clk 0:02:50]} 5. Bxf6 {[%clk 0:02:57]}  Qxf6 {[%clk 0:02:51]} 6. e3 {[%clk 0:02:55]}  g6 {[%clk 0:02:49]} 7. Nc3 {[%clk 0:02:55]}  c6 {[%clk 0:02:49]} 8. Be2 {[%clk 0:02:54]}  Nd7 {[%clk 0:02:49]} 9. O-O {[%clk 0:02:54]}  Bg7 {[%clk 0:02:49]} 10. Qc2 {[%clk 0:02:53]}  O-O {[%clk 0:02:47]} 11. Rfd1 {[%clk 0:02:53]}  Qe7 {[%clk 0:02:45]} 12. Rac1 {[%clk 0:02:52]}  b6 {[%clk 0:02:44]} 13. e4 {[%clk 0:02:48]}  dxe4 {[%clk 0:02:43]} 14. Nxe4 {[%clk 0:02:48]}  Nf6 {[%clk 0:02:42]} 15. c5 {[%clk 0:02:43]}  Nxe4 {[%clk 0:02:29]} 16. Qxe4 {[%clk 0:02:43]}  Bd7 {[%clk 0:02:27]} 17. Ne5 {[%clk 0:02:41]}  Rfc8 {[%clk 0:02:25]} 18. b4 {[%clk 0:02:39]}  Be8 {[%clk 0:02:20]} 19. Bf3 {[%clk 0:02:37]}  Rab8 {[%clk 0:02:11]} 20. g3 {[%clk 0:02:33]}  a5 {[%clk 0:02:10]} 21. a3 {[%clk 0:02:32]}  axb4 {[%clk 0:02:10]} 22. axb4 {[%clk 0:02:32]}  bxc5 {[%clk 0:02:10]} 23. bxc5 {[%clk 0:02:28]}  Rb4 {[%clk 0:02:07]} 24. Rb1 {[%clk 0:02:23]}  Qb7 {[%clk 0:02:04]} 25. Kg2 {[%clk 0:02:09]}  h5 {[%clk 0:01:57]} 26. h4 {[%clk 0:02:08]}  Qb5 {[%clk 0:01:49]} 27. Rxb4 {[%clk 0:01:57]}  Qxb4 {[%clk 0:01:49]} 28. Rb1 {[%clk 0:01:53]}  Qc3 {[%clk 0:01:48]} 29. Qe3 {[%clk 0:01:26]}  Qxe3 {[%clk 0:01:37]} 30. fxe3 {[%clk 0:01:26]}  Bxe5 {[%clk 0:01:36]} 31. dxe5 {[%clk 0:01:26]}  Kf8 {[%clk 0:01:37]} 32. Rb6 {[%clk 0:01:13]}  Rd8 {[%clk 0:01:24]} 33. Bxc6 {[%clk 0:01:11]}  Bxc6+ {[%clk 0:01:25]} 34. Rxc6 {[%clk 0:01:11]}  Rd5 {[%clk 0:01:25]} 35. Kf3 {[%clk 0:01:09]}  Rxe5 {[%clk 0:01:25]} 36. Rc8+ {[%clk 0:01:04]}  Ke7 {[%clk 0:01:25]} 37. Rc7+ {[%clk 0:01:05]}  Ke8 {[%clk 0:01:18]} 38. e4 {[%clk 0:01:04]}  f5 {[%clk 0:01:17]} 39. exf5 {[%clk 0:01:03]}  Rxf5+ {[%clk 0:01:16]} 40. Ke4 {[%clk 0:01:02]}  Rd5 {[%clk 0:01:12]} 41. c6 {[%clk 0:00:54]}  Kd8 {[%clk 0:01:03]} 42. Rg7 {[%clk 0:00:52]}  Rc5 {[%clk 0:01:03]} 43. Rxg6 {[%clk 0:00:52]}  Rxc6 {[%clk 0:01:03]} 44. Ke5 {[%clk 0:00:44]}  Ke7 {[%clk 0:01:00]} 45. Rg7+ {[%clk 0:00:44]}  Kf8 {[%clk 0:01:01]} 46. Rh7 {[%clk 0:00:44]}  Kg8 {[%clk 0:00:58]} 47. Rh6 {[%clk 0:00:40]}  Kf7 {[%clk 0:00:46]} 48. Rf6+ {[%clk 0:00:28]}  Ke7 {[%clk 0:00:46]} 49. Rg6 {[%clk 0:00:27]}  Rc5+ {[%clk 0:00:46]} 50. Ke4 {[%clk 0:00:24]}  Rc4+ {[%clk 0:00:45]} 51. Kf3 {[%clk 0:00:22]}  Rc5 {[%clk 0:00:42]} 52. Rh6 {[%clk 0:00:19]}  Kf7 {[%clk 0:00:41]} 53. Ke4 {[%clk 0:00:19]}  Ra5 {[%clk 0:00:40]} 54. Kf4 {[%clk 0:00:18]}  Rf5+ {[%clk 0:00:39]} 55. Ke4 {[%clk 0:00:18]}  Ra5 {[%clk 0:00:38]} 56. Kf3 {[%clk 0:00:17]}  Rf5+ {[%clk 0:00:37]} 57. Kg2 {[%clk 0:00:16]}  Ra5 {[%clk 0:00:37]} 58. Kf3 {[%clk 0:00:16]}  Rf5+ {[%clk 0:00:37]} 59. Ke3 {[%clk 0:00:13]}  Re5+ {[%clk 0:00:37]} 60. Kd4 {[%clk 0:00:13]}  Rd5+ {[%clk 0:00:37]} 61. Ke4 {[%clk 0:00:14]}  Ra5 {[%clk 0:00:37]} 1/2-1/2


[Site "https://www.chess.com"]